[Event "European Womens-ch 2025"]
[Site "Rhodes"]
[Date "2025.04.08"]
[Round "8.47"]
[White "Shuqja, Klean"]
[Black "Berke, Ana"]
[Result "0-1"]
[Annotator "RC"]
[ECO "C76"]
[WhiteElo "2049"]
[BlackElo "2119"]
[PlyCount "108"]
[EventDate "2025.03.29"]
[EventType "swiss"]
[EventCountry "GRE"]
[SourceTitle "playchess.com"]
[Source "ChessBase"]
[SourceQuality "1"]
[TimeControl "40/5400+30:1800+30"]

1. e4 {[%emt 0:03:50]} e5 {[%emt 0:00:13]} 2. Nf3 {[%emt 0:00:05]} Nc6 {[%emt 0:00:11]} 3. Bb5 {[%emt 0:00:01]} a6 {[%emt 0:00:11]} 4. Ba4 {[%emt 0:00:01]} d6 {[%emt 0:00:09]} 5. c3 {[%emt 0:00:14]} Bd7 {[%emt 0:00:15]} 6. O-O {[%emt 0:00:15]} g6 {[%emt 0:00:32]} 7. d4 {[%emt 0:00:28]} Bg7 {[%emt 0:00:25]} 8. Bg5 {[%emt 0:04:17]} f6 {[%emt 0:01:40]} 9. Be3 {[%emt 0:00:43]} Nh6 {[%emt 0:01:07]} 10. dxe5 {[%emt 0:07:50]} dxe5 {[%emt 0:04:50]} 11. Qd5 {[%emt 0:04:51]} Qe7 {[%emt 0:04:51]} 12. b4 {[%emt 0:05:16]} Qd6 {[%emt 0:04:18]} 13. Qxd6 {[%emt 0:10:26]} cxd6 {[%emt 0:00:08]} 14. Rd1 {[%emt 0:01:06]} Ke7 {[%emt 0:02:39]} 15. Bb6 {[%emt 0:04:37]} Rac8 {[%emt 0:01:18]} 16. Bb3 {[%emt 0:05:59]} Be6 {[%emt 0:02:27]} 17. Nbd2 {[%emt 0:06:23]} Nf7 {[%emt 0:03:28]} 18. a4 {[%emt 0:03:46]} f5 {[%emt 0:03:51]} 19. Bxe6 {[%emt 0:05:50]} Kxe6 {[%emt 0:00:19]} 20. Rab1 {[%emt 0:01:23]} Nb8 {[%emt 0:04:33]} 21. exf5+ {[%emt 0:10:31]} gxf5 {[%emt 0:01:30]} 22. c4 {[%emt 0:03:18]} Nd7 {[%emt 0:02:00]} 23. a5 {[%emt 0:00:48]} Nxb6 {[%emt 0:01:09]} 24. axb6 {[%emt 0:00:02]} Rc6 {[%emt 0:03:32]} 25. b5 {[%emt 0:06:30]} Rxb6 {[%emt 0:01:59]} 26. bxa6 {[%emt 0:10:22]} Rxb1 {[%emt 0:00:21]} 27. Rxb1 {[%emt 0:00:01]} bxa6 {[%emt 0:00:22]} 28. Rb6 {[%emt 0:02:53]} e4 {[%emt 0:01:22]} 29. Nh4 {[%emt 0:00:31]} Bc3 {[%emt 0:03:43]} 30. Nb3 {[%emt 0:01:38]} a5 {[%emt 0:03:53]} 31. g3 {[%emt 0:00:38]} Rc8 {[%emt 0:02:43]} 32. Ng2 {[%emt 0:00:53]} a4 {[%emt 0:03:26]} 33. Nf4+ {[%emt 0:00:09]} Kd7 {[%emt 0:01:14]} 34. Nc1 {[%emt 0:01:23]} Rxc4 {[%emt 0:03:04]} 35. Na2 {[%emt 0:00:18]} Bd4 {[%emt 0:01:45]} 36. Rb7+ {[%emt 0:00:14]} Ke8 {[%emt 0:01:09]} 37. Nb4 {[%emt 0:00:55]} a3 {[%emt 0:02:27]} 38. Rb8+ {[%emt 0:00:18]} Nd8 {[%emt 0:01:25]} 39. Nfd5 {[%emt 0:00:45]} Rc5 {[%emt 0:03:31]} 40. Ra8 {[%emt 0:00:00]} Bb2 {[%emt 0:00:00]} 41. h4 {[%emt 0:02:21]} Kd7 {[%emt 0:08:54]} 42. Ra7+ {[%emt 0:06:18]} Ke8 {[%emt 0:04:22]} 43. Ra8 {[%emt 0:02:21]} Kf7 {[%emt 0:08:11]} 44. Ra7+ {[%emt 0:03:11]} Kg6 {[%emt 0:03:25]} 45. h5+ {[%emt 0:09:50]} Kh6 {[%emt 0:05:12]} 46. Kg2 {[%emt 0:04:27]} Nc6 {[%emt 0:06:39]} 47. Ra6 {[%emt 0:00:46]} Kxh5 {[%emt 0:03:35]} 48. Nf4+ {[%emt 0:01:07]} Kg4 {[%emt 0:03:18]} 49. Ra8 {[%emt 0:01:27]} Ne7 {[%emt 0:02:48]} 50. Ra7 {[%emt 0:01:23]} Ng6 {[%emt 0:01:25]} 51. Nfd5 {[%emt 0:00:53]} f4 {[%emt 0:00:39]} 52. gxf4 {[%emt 0:01:21]} Nxf4+ {[%emt 0:00:21]} 53. Nxf4 {[%emt 0:00:03]} Kxf4 {[%emt 0:00:15]} 54. Ra4 {[%emt 0:00:49]} Ke5 {[%emt 0:00:20]} 0-1

[Event "European Womens-ch 2025"]
[Site "Rhodes"]
[Date "2025.04.08"]
[Round "8.48"]
[White "Nenova, Andzhelika"]
[Black "Koridze, Lile"]
[Result "0-1"]
[Annotator "RC"]
[ECO "B90"]
[WhiteElo "1903"]
[BlackElo "2115"]
[PlyCount "86"]
[EventDate "2025.03.29"]
[EventType "swiss"]
[EventCountry "GRE"]
[SourceTitle "playchess.com"]
[Source "ChessBase"]
[SourceQuality "1"]
[TimeControl "40/5400+30:1800+30"]

1. e4 {[%emt 0:00:16]} c5 {[%emt 0:00:04]} 2. Nf3 {[%emt 1:31:14]} d6 {[%emt 0:00:04]} 3. d4 {[%emt 0:00:00]} cxd4 {[%emt 0:00:03]} 4. Nxd4 {[%emt 0:00:00]} Nf6 {[%emt 0:00:04]} 5. Nc3 {[%emt 0:00:00]} a6 {[%emt 0:00:03]} 6. Rg1 {[%emt 0:00:00]} b5 {[%emt 0:00:51]} 7. a4 {[%emt 0:00:00]} b4 {[%emt 0:01:45]} 8. Nd5 {[%emt 0:00:00]} e6 {[%emt 0:11:46]} 9. Nxf6+ {[%emt 0:00:00]} Qxf6 {[%emt 0:00:06]} 10. Be3 {[%emt 0:00:00]} Be7 {[%emt 0:06:33]} 11. Qd2 {[%emt 0:00:00]} O-O {[%emt 1:14:41]} 12. O-O-O {[%emt 0:00:00]} Bb7 {[%emt 0:00:00]} 13. f3 {[%emt 0:00:00]} d5 {[%emt 0:00:00]} 14. g4 {[%emt 0:00:00]} dxe4 {[%emt 0:00:00]} 15. f4 {[%emt 0:00:00]} Nc6 {[%emt 0:00:00]} 16. Nxc6 {[%emt 0:00:00]} Bxc6 {[%emt 0:00:00]} 17. Bd4 {[%emt 0:00:00]} Qh6 {[%emt 0:00:00]} 18. h4 {[%emt 0:00:00]} Rfd8 {[%emt 0:00:00]} 19. Qf2 {[%emt 0:00:00]} Bxh4 {[%emt 0:00:00]} 20. Qe3 {[%emt 0:00:00]} Bf6 {[%emt 0:00:00]} 21. g5 {[%emt 0:00:00]} Bxd4 {[%emt 0:00:00]} 22. Rxd4 {[%emt 0:00:00]} Qg6 {[%emt 0:00:00]} 23. Rxd8+ {[%emt 0:00:00]} Rxd8 {[%emt 0:00:00]} 24. Qb6 {[%emt 0:00:00]} Rf8 {[%emt 0:00:00]} 25. Qxc6 {[%emt 0:00:00]} Qf5 {[%emt 0:00:00]} 26. Qd6 {[%emt 0:00:00]} Qa5 {[%emt 0:00:00]} 27. Bc4 {[%emt 0:01:24]} Rd8 {[%emt 0:00:00]} 28. Qe5 {[%emt 0:04:02]} Qxa4 {[%emt 0:03:41]} 29. Kb1 {[%emt 0:00:06]} Qc6 {[%emt 0:00:40]} 30. Bb3 {[%emt 0:00:07]} g6 {[%emt 0:04:05]} 31. f5 {[%emt 0:06:20]} exf5 {[%emt 0:00:32]} 32. Rh1 {[%emt 0:00:09]} Qd7 {[%emt 0:00:30]} 33. Qh2 {[%emt 0:00:28]} h5 {[%emt 0:00:25]} 34. gxh6 {[%emt 0:00:03]} Qe7 {[%emt 0:00:13]} 35. h7+ {[%emt 0:02:48]} Kh8 {[%emt 0:00:03]} 36. Qf4 {[%emt 0:00:52]} e3 {[%emt 0:00:29]} 37. Bxf7 {[%emt 0:00:37]} e2 {[%emt 0:00:19]} 38. Re1 {[%emt 0:00:27]} Rd1+ {[%emt 0:00:08]} 39. Ka2 {[%emt 0:00:05]} Qxf7+ {[%emt 0:00:02]} 40. b3 {[%emt 0:00:00]} Rxe1 {[%emt 0:00:00]} 41. Qd4+ {[%emt 0:02:27]} Kxh7 {[%emt 0:02:48]} 42. Qh4+ {[%emt 0:00:07]} Kg7 {[%emt 0:00:11]} 43. Qxe1 {[%emt 0:00:06]} Qe7 {[%emt 0:00:09]} 0-1

[Event "European Womens-ch 2025"]
[Site "Rhodes"]
[Date "2025.04.08"]
[Round "8.49"]
[White "Recica, Jona"]
[Black "Deak-Sala, Emilia"]
[Result "0-1"]
[Annotator "NA RC"]
[ECO "B48"]
[WhiteElo "1716"]
[BlackElo "2112"]
[PlyCount "84"]
[EventDate "2025.03.29"]
[EventType "swiss"]
[EventCountry "GRE"]
[SourceTitle "playchess.com"]
[Source "ChessBase"]
[SourceQuality "1"]
[TimeControl "40/5400+30:1800+30"]

1. e4 {[%emt 0:00:02]} c5 {[%emt 0:05:11]} 2. Nf3 {[%emt 0:00:07]} e6 {[%emt 0:00:08]} 3. d4 {[%emt 0:00:05]} cxd4 {[%emt 0:00:05]} 4. Nxd4 {[%emt 0:00:08]} Nc6 {[%emt 0:00:03]} 5. Nc3 {[%emt 0:00:10]} Qc7 {[%emt 0:00:06]} 6. Be3 {[%emt 0:00:18]} a6 {[%emt 0:00:03]} 7. Qd2 {[%emt 1:33:10]} Nf6 {[%emt 0:00:12]} 8. f3 {[%emt 0:00:00]} Be7 {[%emt 0:01:09]} 9. O-O-O {[%emt 0:00:00]} b5 {[%emt 0:00:29]} 10. g4 {[%emt 0:00:00]} Bb7 {[%emt 0:02:29]} 11. h4 {[%emt 0:00:00]} Rc8 {[%emt 0:04:39]} 12. Kb1 {[%emt 0:00:00]} O-O {[%emt 0:14:54]} 13. h5 {[%emt 0:00:00]} b4 {[%emt 0:06:59]} 14. Na4 {[%emt 0:00:00]} d5 {[%emt 0:03:39]} 15. g5 {[%emt 0:00:00]} Nd7 {[%emt 0:03:59]} 16. exd5 {[%emt 0:00:00]} Nxd4 {[%emt 0:00:27]} 17. Bxd4 {[%emt 0:00:00]} Bxd5 {[%emt 0:03:58]} 18. g6 {[%emt 0:00:00]} fxg6 {[%emt 0:02:56]} 19. hxg6 {[%emt 0:00:00]} h6 {[%emt 0:00:18]} 20. Bd3 {[%emt 0:00:00]} Bg5 {[%emt 0:00:49]} 21. Be3 {[%emt 0:00:00]} Bxe3 {[%emt 0:00:25]} 22. Qxe3 {[%emt 0:00:00]} Rxf3 {[%emt 0:00:10]} 23. Qd2 {[%emt 0:00:00]} Qc6 {[%emt 0:03:35]} 24. Rxh6 {[%emt 0:00:00]} Rxd3 {[%emt 0:06:30]} 25. Rh8+ {[%emt 0:00:00]} Kxh8 {[%emt 0:00:05]} 26. Qh2+ {[%emt 0:00:00]} Kg8 {[%emt 0:00:03]} 27. Rxd3 {[%emt 0:00:00]} Nf8 {[%emt 0:04:45]} 28. b3 {[%emt 0:00:00]} Be4 {[%emt 0:02:00]} 29. Rd2 {[%emt 0:00:00]} Nxg6 {[%emt 0:04:55]} 30. Nb2 {[%emt 0:00:00]} Qc7 {[%emt 0:02:02]} 31. Qe2 {[%emt 0:00:00]} Bf5 {[%emt 0:00:05]} 32. Nc4 {[%emt 0:00:00]} Nf4 {[%emt 0:00:19]} 33. Qf2 {[%emt 0:00:00]} Nd5 {[%emt 0:00:43]} 34. Qd4 {[%emt 0:00:00]} Qf4 {[%emt 0:02:28]} 35. Qxf4 {[%emt 0:00:00]} Nxf4 {[%emt 0:00:07]} 36. Rf2 {[%emt 0:00:00]} Nd5 {[%emt 0:00:25]} 37. Nd6 {[%emt 0:00:00]} Nc3+ {[%emt 0:00:08]} 38. Ka1 {[%emt 0:00:00]} Rd8 {[%emt 0:00:11]} 39. Rd2 {[%emt 0:00:00]} Kf8 {[%emt 0:00:24]} 40. Kb2 {[%emt 0:00:00]} Ke7 {[%emt 0:00:00]} 41. Nxf5+ {[%emt 0:00:00]} exf5 {[%emt 0:00:41]} 42. Rxd8 {[%emt 0:00:00]} Kxd8 {[%emt 0:00:03]} 0-1

[Event "European Womens-ch 2025"]
[Site "Rhodes"]
[Date "2025.04.08"]
[Round "8.50"]
[White "Heinatz, Gundula"]
[Black "Caku, Kler"]
[Result "0-1"]
[Annotator "NA RC"]
[ECO "A07"]
[WhiteElo "2111"]
[BlackElo "2036"]
[PlyCount "66"]
[EventDate "2025.03.29"]
[EventType "swiss"]
[EventCountry "GRE"]
[SourceTitle "playchess.com"]
[Source "ChessBase"]
[SourceQuality "1"]
[TimeControl "40/5400+30:1800+30"]

1. Nf3 {[%emt 0:00:08]} d5 {[%emt 0:00:12]} 2. g3 {[%emt 0:00:06]} Nf6 {[%emt 0:00:23]} 3. Bg2 {[%emt 0:00:07]} e6 {[%emt 0:00:13]} 4. O-O {[%emt 0:00:32]} Be7 {[%emt 0:00:31]} 5. d3 {[%emt 0:00:57]} c5 {[%emt 0:00:29]} 6. Nbd2 {[%emt 0:00:49]} O-O {[%emt 0:01:12]} 7. e4 {[%emt 0:01:56]} d4 {[%emt 0:02:07]} 8. Qe2 {[%emt 0:09:25]} Nc6 {[%emt 0:01:39]} 9. e5 {[%emt 0:05:28]} Nd5 {[%emt 0:02:04]} 10. Ne4 {[%emt 0:04:08]} Qc7 {[%emt 0:02:40]} 11. c4 {[%emt 0:03:55]} dxc3 {[%emt 0:04:21]} 12. Nxc3 {[%emt 0:01:12]} Rd8 {[%emt 0:05:09]} 13. a3 {[%emt 0:06:38]} b6 {[%emt 0:07:09]} 14. Bd2 {[%emt 0:09:35]} Ba6 {[%emt 0:08:08]} 15. Rad1 {[%emt 0:00:20]} Rac8 {[%emt 0:04:12]} 16. Rfe1 {[%emt 0:04:55]} Rd7 {[%emt 0:10:37]} 17. Qe4 {[%emt 0:08:52]} Rcd8 {[%emt 0:05:29]} 18. Ng5 {[%emt 0:03:56]} Bxg5 {[%emt 0:08:15]} 19. Bxg5 {[%emt 0:00:29]} Nde7 {[%emt 0:01:22]} 20. Qa4 {[%emt 0:04:58]} Nb8 {[%emt 0:06:24]} 21. Nb5 {[%emt 0:07:36]} Bxb5 {[%emt 0:00:22]} 22. Qxb5 {[%emt 0:00:02]} h6 {[%emt 0:00:34]} 23. Bc1 {[%emt 0:04:09]} Nbc6 {[%emt 0:03:22]} 24. f4 {[%emt 0:09:27]} Nd4 {[%emt 0:01:13]} 25. Qa6 {[%emt 0:01:04]} c4 {[%emt 0:01:23]} 26. Kh1 {[%emt 0:02:41]} Nc2 {[%emt 0:02:01]} 27. Rg1 {[%emt 0:02:19]} cxd3 {[%emt 0:02:06]} 28. Bd2 {[%emt 0:00:44]} Nf5 {[%emt 0:02:58]} 29. Rc1 {[%emt 0:00:18]} Qc5 {[%emt 0:01:01]} 30. Be4 {[%emt 0:06:50]} Nfe3 {[%emt 0:03:14]} 31. Qa4 {[%emt 0:01:43]} Nc4 {[%emt 0:04:55]} 32. Bxd3 {[%emt 0:00:38]} Rxd3 {[%emt 0:00:22]} 33. Qxc2 {[%emt 0:00:26]} Qd5+ {[%emt 0:00:12]} 0-1

[Event "European Womens-ch 2025"]
[Site "Rhodes"]
[Date "2025.04.08"]
[Round "8.51"]
[White "Tsetskhladze, Mariam"]
[Black "Krkyasharyan, Sona"]
[Result "0-1"]
[Annotator "RC"]
[ECO "B51"]
[WhiteElo "2105"]
[BlackElo "1989"]
[PlyCount "116"]
[EventDate "2025.03.29"]
[EventType "swiss"]
[EventCountry "GRE"]
[SourceTitle "playchess.com"]
[Source "ChessBase"]
[SourceQuality "1"]
[TimeControl "40/5400+30:1800+30"]

1. e4 {[%emt 1:31:00]} c5 {[%emt 1:31:00]} 2. Nf3 {[%emt 0:00:30]} d6 {[%emt 0:00:30]} 3. Bb5+ {[%emt 0:00:30]} Nd7 {[%emt 0:00:30]} 4. a4 {[%emt 0:00:30]} a6 {[%emt 0:00:30]} 5. Be2 {[%emt 0:00:30]} Ngf6 {[%emt 0:00:30]} 6. Nc3 {[%emt 0:00:30]} g6 {[%emt 0:00:30]} 7. O-O {[%emt 0:00:30]} Bg7 {[%emt 0:00:30]} 8. d3 {[%emt 0:00:30]} O-O {[%emt 0:00:30]} 9. Qd2 {[%emt 0:00:30]} b6 {[%emt 0:00:30]} 10. Ne1 {[%emt 0:00:30]} Bb7 {[%emt 0:00:30]} 11. f4 {[%emt 0:00:30]} Bc6 {[%emt 0:00:30]} 12. Bf3 {[%emt 0:00:30]} Qc7 {[%emt 0:00:30]} 13. Qe2 {[%emt 0:00:30]} b5 {[%emt 0:00:30]} 14. Bd2 {[%emt 0:00:30]} b4 {[%emt 0:00:30]} 15. Nd1 {[%emt 0:00:30]} a5 {[%emt 0:00:30]} 16. Rc1 {[%emt 0:00:30]} Rae8 {[%emt 0:00:30]} 17. b3 {[%emt 0:00:30]} e5 {[%emt 0:00:30]} 18. g3 {[%emt 0:00:30]} d5 {[%emt 0:00:30]} 19. exd5 {[%emt 0:00:30]} Nxd5 {[%emt 0:00:30]} 20. Qg2 {[%emt 0:00:30]} Ne7 {[%emt 0:00:30]} 21. c3 {[%emt 0:00:30]} Bxf3 {[%emt 0:00:30]} 22. Nxf3 {[%emt 0:00:30]} Qb6 {[%emt 0:00:30]} 23. cxb4 {[%emt 0:00:30]} cxb4+ {[%emt 0:00:30]} 24. Be3 {[%emt 0:00:30]} Qa6 {[%emt 0:00:30]} 25. Qd2 {[%emt 0:00:30]} Nf5 {[%emt 0:00:30]} 26. fxe5 {[%emt 0:00:30]} Nxe3 {[%emt 0:00:30]} 27. Nxe3 {[%emt 0:00:30]} Nxe5 {[%emt 0:00:30]} 28. Nxe5 {[%emt 0:00:30]} Bxe5 {[%emt 0:00:30]} 29. Nc4 {[%emt 0:00:30]} Bd4+ {[%emt 0:00:30]} 30. Kh1 {[%emt 0:00:30]} Re7 {[%emt 0:00:30]} 31. Qf4 {[%emt 0:00:30]} Bg7 {[%emt 0:00:30]} 32. Rcd1 {[%emt 0:00:30]} Rd8 {[%emt 0:00:30]} 33. Qf3 {[%emt 0:00:30]} h5 {[%emt 0:00:30]} 34. Rfe1 {[%emt 0:00:30]} Red7 {[%emt 0:00:30]} 35. Rf1 {[%emt 0:00:30]} Qa7 {[%emt 0:00:30]} 36. Rfe1 {[%emt 0:00:30]} Rd4 {[%emt 0:00:30]} 37. Re4 {[%emt 0:00:30]} Qa8 {[%emt 0:00:30]} 38. Rf1 {[%emt 0:00:30]} Rxd3 {[%emt 0:00:30]} 39. Re3 {[%emt 0:00:30]} Qxf3+ {[%emt 0:00:30]} 40. Rexf3 {[%emt 0:00:30]} Rxf3 {[%emt 0:00:30]} 41. Rxf3 {[%emt 0:30:30]} Rd5 {[%emt 0:30:30]} 42. Kg2 {[%emt 0:00:30]} f5 {[%emt 0:00:30]} 43. Kf1 {[%emt 0:00:30]} Bf6 {[%emt 0:00:30]} 44. Ke2 {[%emt 0:00:30]} Kf7 {[%emt 0:00:30]} 45. Rd3 {[%emt 0:00:30]} Rxd3 {[%emt 0:00:30]} 46. Kxd3 {[%emt 0:00:30]} Bd8 {[%emt 0:00:30]} 47. Ke3 {[%emt 0:00:30]} Ke6 {[%emt 0:00:30]} 48. Kd3 {[%emt 0:00:30]} Bc7 {[%emt 0:00:30]} 49. Ke3 {[%emt 0:00:30]} g5 {[%emt 0:00:30]} 50. Kd3 {[%emt 0:00:30]} g4 {[%emt 0:00:30]} 51. Ke3 {[%emt 0:00:30]} Kf6 {[%emt 0:00:30]} 52. Kf2 {[%emt 0:00:30]} Kg5 {[%emt 0:00:30]} 53. Kg2 {[%emt 0:00:30]} h4 {[%emt 0:00:30]} 54. gxh4+ {[%emt 0:00:30]} Kxh4 {[%emt 0:00:30]} 55. Ne3 {[%emt 0:00:30]} f4 {[%emt 0:00:30]} 56. Nf5+ {[%emt 0:00:30]} Kg5 {[%emt 0:00:30]} 57. Nd4 {[%emt 0:00:30]} f3+ {[%emt 0:00:30]} 58. Kg1 {[%emt 0:00:30]} Bb6 {[%emt 0:00:30]} 0-1

[Event "European Womens-ch 2025"]
[Site "Rhodes"]
[Date "2025.04.08"]
[Round "8.52"]
[White "Subramanian, Anusha"]
[Black "Paasikangas, Johanna"]
[Result "0-1"]
[Annotator "RC"]
[ECO "C76"]
[WhiteElo "2026"]
[BlackElo "2106"]
[PlyCount "92"]
[EventDate "2025.03.29"]
[EventType "swiss"]
[EventCountry "GRE"]
[SourceTitle "playchess.com"]
[Source "ChessBase"]
[SourceQuality "1"]
[TimeControl "40/5400+30:1800+30"]

1. e4 {[%emt 0:00:03]} e5 {[%emt 0:00:13]} 2. Nf3 {[%emt 0:00:06]} Nc6 {[%emt 0:00:07]} 3. Bb5 {[%emt 0:00:04]} a6 {[%emt 0:00:13]} 4. Ba4 {[%emt 0:00:05]} d6 {[%emt 0:01:03]} 5. c3 {[%emt 0:00:45]} Bd7 {[%emt 0:00:50]} 6. O-O {[%emt 0:00:36]} g6 {[%emt 0:00:07]} 7. d4 {[%emt 0:00:41]} Bg7 {[%emt 0:00:44]} 8. Be3 {[%emt 0:04:51]} b5 {[%emt 0:01:35]} 9. Bc2 {[%emt 0:01:19]} Nf6 {[%emt 0:01:33]} 10. h3 {[%emt 0:02:23]} O-O {[%emt 0:00:43]} 11. Nbd2 {[%emt 0:06:17]} a5 {[%emt 0:06:01]} 12. a4 {[%emt 0:09:23]} exd4 {[%emt 0:05:16]} 13. Nxd4 {[%emt 0:01:26]} Nxd4 {[%emt 0:09:57]} 14. cxd4 {[%emt 0:00:32]} b4 {[%emt 0:02:42]} 15. Re1 {[%emt 0:01:44]} Bc6 {[%emt 0:03:16]} 16. d5 {[%emt 0:05:07]} Bb7 {[%emt 0:00:42]} 17. Bd4 {[%emt 0:01:01]} Re8 {[%emt 0:08:30]} 18. Nc4 {[%emt 0:03:00]} Ba6 {[%emt 0:17:36]} 19. Nxa5 {[%emt 0:16:02]} c5 {[%emt 0:00:29]} 20. Nc6 {[%emt 0:00:31]} Qd7 {[%emt 0:00:41]} 21. Bxf6 {[%emt 0:01:18]} Bxf6 {[%emt 0:00:19]} 22. Rb1 {[%emt 0:00:36]} Rac8 {[%emt 0:11:55]} 23. Bd3 {[%emt 0:19:56]} c4 {[%emt 0:02:01]} 24. Be2 {[%emt 0:00:29]} Rxc6 {[%emt 0:01:52]} 25. Bg4 {[%emt 0:01:38]} Qc7 {[%emt 0:00:05]} 26. dxc6 {[%emt 0:00:17]} Qxc6 {[%emt 0:00:04]} 27. Bf3 {[%emt 0:02:35]} Qb6 {[%emt 0:01:14]} 28. Qc2 {[%emt 0:04:31]} b3 {[%emt 0:02:29]} 29. Qd2 {[%emt 0:00:54]} Be5 {[%emt 0:01:39]} 30. Rec1 {[%emt 0:05:02]} Rc8 {[%emt 0:01:08]} 31. h4 {[%emt 0:01:21]} Qd8 {[%emt 0:06:27]} 32. g3 {[%emt 0:02:04]} h5 {[%emt 0:04:18]} 33. Kg2 {[%emt 0:00:52]} Rc5 {[%emt 0:03:11]} 34. Be2 {[%emt 0:07:49]} Qc7 {[%emt 0:02:52]} 35. g4 {[%emt 0:01:36]} hxg4 {[%emt 0:01:50]} 36. h5 {[%emt 0:00:23]} gxh5 {[%emt 0:00:56]} 37. Rh1 {[%emt 0:00:51]} Bg7 {[%emt 0:00:33]} 38. Rbd1 {[%emt 0:00:17]} Qe7 {[%emt 0:01:57]} 39. Qf4 {[%emt 0:00:48]} Bb7 {[%emt 0:00:46]} 40. f3 {[%emt 0:00:00]} Re5 {[%emt 0:00:00]} 41. Rde1 {[%emt 0:08:38]} d5 {[%emt 0:05:15]} 42. fxg4 {[%emt 0:04:53]} Rxe4 {[%emt 0:00:22]} 43. Qd2 {[%emt 0:10:09]} hxg4 {[%emt 0:01:22]} 44. Rhf1 {[%emt 0:02:46]} d4 {[%emt 0:01:34]} 45. Kg1 {[%emt 0:01:15]} d3 {[%emt 0:00:28]} 46. Bd1 {[%emt 0:02:03]} Bd4+ {[%emt 0:00:11]} 0-1

[Event "European Womens-ch 2025"]
[Site "Rhodes"]
[Date "2025.04.08"]
[Round "8.53"]
[White "Rida, Ruqayyah"]
[Black "Alexandri, Dimitra"]
[Result "1-0"]
[Annotator "NA RC"]
[ECO "B90"]
[WhiteElo "2065"]
[BlackElo "1995"]
[PlyCount "69"]
[EventDate "2025.03.29"]
[EventType "swiss"]
[EventCountry "GRE"]
[SourceTitle "playchess.com"]
[Source "ChessBase"]
[SourceQuality "1"]
[TimeControl "40/5400+30:1800+30"]

1. e4 {[%emt 1:31:00]} c5 {[%emt 1:31:00]} 2. Nf3 {[%emt 0:00:30]} d6 {[%emt 0:00:30]} 3. d4 {[%emt 0:00:30]} cxd4 {[%emt 0:00:30]} 4. Nxd4 {[%emt 0:00:30]} Nf6 {[%emt 0:00:30]} 5. Nc3 {[%emt 0:00:30]} a6 {[%emt 0:00:30]} 6. f3 {[%emt 0:00:30]} e5 {[%emt 0:00:30]} 7. Nb3 {[%emt 0:00:30]} Be6 {[%emt 0:00:30]} 8. Be3 {[%emt 0:00:30]} Be7 {[%emt 0:00:30]} 9. Qd2 {[%emt 0:00:30]} O-O {[%emt 0:00:30]} 10. O-O-O {[%emt 0:00:30]} a5 {[%emt 0:00:30]} 11. a4 {[%emt 0:00:30]} Nc6 {[%emt 0:00:30]} 12. g4 {[%emt 0:00:30]} Nb4 {[%emt 0:00:30]} 13. Kb1 {[%emt 0:00:30]} Rc8 {[%emt 0:00:30]} 14. g5 {[%emt 0:00:30]} Nh5 {[%emt 0:00:30]} 15. Rg1 {[%emt 0:00:30]} f5 {[%emt 0:00:30]} 16. gxf6 {[%emt 0:00:30]} Rxf6 {[%emt 0:00:30]} 17. Bg5 {[%emt 0:00:30]} Rxf3 {[%emt 0:00:30]} 18. Qe2 {[%emt 0:00:30]} Rfxc3 {[%emt 0:00:30]} 19. bxc3 {[%emt 0:00:30]} Rxc3 {[%emt 0:00:30]} 20. Bxe7 {[%emt 0:00:30]} Qxe7 {[%emt 0:00:30]} 21. Qxh5 {[%emt 0:00:30]} Bxb3 {[%emt 0:00:30]} 22. cxb3 {[%emt 0:00:30]} Rxb3+ {[%emt 0:00:30]} 23. Ka1 {[%emt 0:00:30]} Nc2+ {[%emt 0:00:30]} 24. Ka2 {[%emt 0:00:30]} Ra3+ {[%emt 0:00:30]} 25. Kb2 {[%emt 0:00:30]} d5 {[%emt 0:00:30]} 26. Rxg7+ {[%emt 0:00:30]} Kxg7 {[%emt 0:00:30]} 27. Qg4+ {[%emt 0:00:30]} Kh6 {[%emt 0:00:30]} 28. exd5 {[%emt 0:00:30]} Qc7 {[%emt 0:00:30]} 29. Qc4 {[%emt 0:00:30]} Qb6+ {[%emt 0:00:30]} 30. Kxc2 {[%emt 0:00:30]} Qf2+ {[%emt 0:00:30]} 31. Rd2 {[%emt 0:00:30]} Qe1 {[%emt 0:00:30]} 32. d6 {[%emt 0:00:30]} Ra1 {[%emt 0:00:30]} 33. Qe6+ {[%emt 0:00:30]} Kg5 {[%emt 0:00:30]} 34. Rg2+ {[%emt 0:00:30]} Kf4 {[%emt 0:00:30]} 35. Qg4+ {[%emt 0:00:30]} 1-0

[Event "European Womens-ch 2025"]
[Site "Rhodes"]
[Date "2025.04.08"]
[Round "8.54"]
[White "Silva, Ana Ines Teixeira Da"]
[Black "Huseynova, Lala"]
[Result "1/2-1/2"]
[Annotator "NA RC"]
[ECO "B55"]
[WhiteElo "1893"]
[BlackElo "2065"]
[PlyCount "103"]
[EventDate "2025.03.29"]
[EventType "swiss"]
[EventCountry "GRE"]
[SourceTitle "playchess.com"]
[Source "ChessBase"]
[SourceQuality "1"]
[TimeControl "40/5400+30:1800+30"]

1. e4 {[%emt 0:00:05]} c5 {[%emt 0:00:03]} 2. Nf3 {[%emt 0:00:05]} d6 {[%emt 0:00:03]} 3. d4 {[%emt 0:00:05]} cxd4 {[%emt 0:00:03]} 4. Nxd4 {[%emt 0:00:05]} Nf6 {[%emt 0:00:03]} 5. Bd3 {[%emt 0:00:06]} Nc6 {[%emt 0:05:19]} 6. Nxc6 {[%emt 0:00:06]} bxc6 {[%emt 0:00:05]} 7. O-O {[%emt 0:00:13]} g6 {[%emt 0:01:28]} 8. b3 {[%emt 0:00:23]} Bg7 {[%emt 0:00:54]} 9. Bb2 {[%emt 0:00:15]} O-O {[%emt 0:00:15]} 10. Nc3 {[%emt 0:00:58]} Qa5 {[%emt 0:08:35]} 11. Na4 {[%emt 0:13:33]} Bd7 {[%emt 0:04:35]} 12. Re1 {[%emt 0:07:05]} c5 {[%emt 0:13:34]} 13. e5 {[%emt 0:23:32]} dxe5 {[%emt 0:08:33]} 14. Bc3 {[%emt 0:05:51]} Qd8 {[%emt 0:04:58]} 15. Nxc5 {[%emt 0:13:26]} Bc6 {[%emt 0:01:40]} 16. Ne4 {[%emt 0:08:21]} Nd5 {[%emt 0:02:27]} 17. Bb2 {[%emt 0:08:52]} f5 {[%emt 0:06:50]} 18. Ng5 {[%emt 0:03:19]} Qd6 {[%emt 0:03:49]} 19. Bc4 {[%emt 0:01:26]} Rad8 {[%emt 0:19:28]} 20. Nf3 {[%emt 0:00:52]} e4 {[%emt 0:00:32]} 21. Bxg7 {[%emt 0:00:36]} Kxg7 {[%emt 0:00:32]} 22. Qd4+ {[%emt 0:04:43]} Nf6 {[%emt 0:02:35]} 23. Qxd6 {[%emt 0:00:23]} exd6 {[%emt 0:00:46]} 24. Nd4 {[%emt 0:00:34]} Bd7 {[%emt 0:00:05]} 25. Be6 {[%emt 0:02:45]} Rfe8 {[%emt 0:01:50]} 26. Bxd7 {[%emt 0:00:04]} Rxd7 {[%emt 0:00:55]} 27. c4 {[%emt 0:01:04]} f4 {[%emt 0:05:10]} 28. Rad1 {[%emt 0:00:54]} Kf7 {[%emt 0:00:35]} 29. Nb5 {[%emt 0:00:43]} Ke6 {[%emt 0:02:11]} 30. Rd4 {[%emt 0:01:38]} a6 {[%emt 0:01:32]} 31. Nc3 {[%emt 0:00:09]} Kf5 {[%emt 0:00:02]} 32. Nd5 {[%emt 0:01:43]} Nxd5 {[%emt 0:00:35]} 33. Rxd5+ {[%emt 0:00:06]} Re5 {[%emt 0:00:05]} 34. Red1 {[%emt 0:01:12]} e3 {[%emt 0:01:05]} 35. fxe3 {[%emt 0:01:09]} fxe3 {[%emt 0:00:01]} 36. g4+ {[%emt 0:01:23]} Kf4 {[%emt 0:01:28]} 37. Rxe5 {[%emt 0:00:19]} Kxe5 {[%emt 0:00:01]} 38. Kf1 {[%emt 0:00:13]} d5 {[%emt 0:00:50]} 39. Rxd5+ {[%emt 0:00:40]} Rxd5 {[%emt 0:00:07]} 40. cxd5 {[%emt 0:00:00]} Kxd5 {[%emt 0:00:00]} 41. Ke2 {[%emt 0:00:07]} Kc5 {[%emt 0:16:28]} 42. Kxe3 {[%emt 0:08:37]} Kb4 {[%emt 0:00:09]} 43. Kd3 {[%emt 0:02:56]} Ka3 {[%emt 0:00:03]} 44. g5 {[%emt 0:04:49]} Kxa2 {[%emt 0:01:17]} 45. Kc2 {[%emt 0:02:00]} Ka3 {[%emt 0:03:51]} 46. Kc3 {[%emt 0:00:21]} Ka2 {[%emt 0:00:16]} 47. Kc2 {[%emt 0:00:11]} a5 {[%emt 0:00:50]} 48. h4 {[%emt 0:00:31]} Ka1 {[%emt 0:00:15]} 49. Kc1 {[%emt 0:00:18]} Ka2 {[%emt 0:00:01]} 50. Kc2 {[%emt 0:00:06]} Ka3 {[%emt 0:00:01]} 51. Kc3 {[%emt 0:00:07]} Ka2 {[%emt 0:00:10]} 52. Kc2 {[%emt 0:00:06]} 1/2-1/2